fUSD/lending_fUSD_20240122
["ID","MTS","AMOUNT","RATE_DAILY","PERIOD"]
[312548466,1705962633086,-4934.34,0.00033989,2]
[312548467,1705962633095,-4934.34,0.00033989,2]
[312548468,1705962633104,-167483.95549719,0.0003399,2]
[312548469,1705962633118,-43530.76044069,0.0003399,2]
[312548470,1705962633129,-251639.37901825,0.0003399,2]
[312548508,1705962637950,-825.57805478,0.00028021,2]
[312548515,1705962638013,-561.2699,0.00028021,2]
[312548516,1705962638025,-333.4011,0.00028021,2]
[312548517,1705962638037,-984.75094522,0.00028021,2]
[312548518,1705962638046,-2500.0,0.0003389,2]
[312548519,1705962638055,-7646.35273864,0.0003399,2]
[312548524,1705962638153,-6267.86450523,0.0003399,2]
[312548526,1705962638163,-1000.0,0.00034,4]
[312548528,1705962638172,-500.0,0.00034,2]
[312548530,1705962638181,-506.61948755,0.00034,4]
[312548532,1705962638191,-348.43,0.00034087,2]
[312548534,1705962638201,-5000.0,0.0003409,2]
[312548536,1705962638214,-157.3035794,0.00034198,2]
[312548538,1705962638224,-163.32,0.00034247,2]
[312548540,1705962638233,-273.01,0.00034304,2]
[312548542,1705962638243,-998.11064817,0.00034545,2]
[312548544,1705962638252,-164.39,0.00034638,2]
[312548546,1705962638261,-503.61346446,0.000349,2]
[312548549,1705962638270,-998.11064817,0.00035189,2]
[312548551,1705962638280,-157.3035794,0.00035244,2]
[312548553,1705962638289,-503.61346443,0.00035567,2]
[312548554,1705962638298,-998.11064817,0.00035834,2]
[312548556,1705962638308,-258.4,0.00035862,2]
[312548558,1705962638317,-164.97,0.00036111,2]
[312548561,1705962638327,-98.98948705,0.00036127,2]
[312548563,1705962638339,-65.40051295,0.00036127,2]
[312548565,1705962638349,-157.3035794,0.0003629,2]
[312548567,1705962638360,-381.18278025,0.00036407,7]
[312548569,1705962638370,-825.91329475,0.00036478,2]
[312548575,1705962638423,-172.19735342,0.00036478,2]
[312548577,1705962638433,-357.87420369,0.0003648,4]
[312548579,1705962638443,-108.08667962,0.000366,5]
[312548581,1705962638462,-662.91332038,0.000366,5]
[312548584,1705962638473,-153.58,0.000366,3]
[312548586,1705962638484,-153.58,0.000366,3]
[312548588,1705962638495,-153.58,0.000366,3]
[312548590,1705962638505,-153.58,0.000366,3]
[312548592,1705962638516,-153.58,0.000366,3]
[312548594,1705962638526,-153.58,0.000366,3]
[312548596,1705962638536,-153.58,0.000366,3]
[312548597,1705962638546,-153.58,0.000366,3]
[312548600,1705962638556,-110.23867963,0.000366,3]
[312548602,1705962638569,-43.34132037,0.000366,3]
[312548604,1705962638579,-153.58,0.000366,3]
[312548606,1705962638589,-153.58,0.000366,3]
[312548608,1705962638599,-153.58,0.000366,3]
[312548610,1705962638609,-153.58,0.000366,3]
[312548612,1705962638619,-153.58,0.000366,3]
[312548614,1705962638628,-153.58,0.000366,3]
[312548616,1705962638638,-153.58,0.000366,3]
[312548618,1705962638647,-153.58,0.000366,3]
[312548620,1705962638656,-153.58,0.000366,3]
[312548622,1705962638666,-153.58,0.000366,3]
[312548624,1705962638675,-153.58,0.000366,3]
[312548626,1705962638684,-998.11064817,0.00037123,2]
[312548628,1705962638693,-503.61346443,0.00037233,2]
[312548630,1705962638707,-150.0,0.000373,2]
[312548632,1705962638716,-157.3035794,0.00037336,2]
[312548634,1705962638726,-151.0123,0.00037498,10]
[312548636,1705962638735,-151.0123,0.00037598,8]
[312548638,1705962638746,-153.25928755,0.00037616,2]
[312548768,1705962642809,-3659.9084,0.00033789,2]
[312548771,1705962642819,-11.13071245,0.00037616,2]
[312548774,1705962642829,-151.0123,0.00037698,10]
[312548777,1705962642838,-998.11064817,0.00037767,2]
[312548779,1705962642848,-151.0123,0.00037798,8]
[312548781,1705962642858,-209.20789381,0.00037798,2]
[312548783,1705962642868,-3597.73,0.00037808,2]
[312548785,1705962642878,-1138.0,0.00037873,2]
[312548786,1705962642887,-167.43304946,0.00037896,4]
[312548788,1705962642898,-303.55478187,0.00037896,4]
[312548789,1705962642907,-933.94016922,0.00037896,2]
[312548790,1705962642917,-201.13102968,0.00037896,4]
[312548791,1705962642926,-1249.31192992,0.00037897,4]
[312548792,1705962642936,-181.14133335,0.00037898,4]
[312548793,1705962642945,-638.18124601,0.00037898,2]
[312548794,1705962642956,-16064.96031642,0.00037898,4]
[312548795,1705962642979,-985.353,0.00037898,4]
[312548796,1705962642991,-4004.2926,0.00037898,4]
[312548797,1705962643024,-307.48877346,0.00037898,4]
[312548798,1705962643072,-8566.64942877,0.00037898,4]
[312548799,1705962643081,-6767.14821766,0.00037898,4]
[312548800,1705962643091,-151.0123,0.00037898,10]
[312548801,1705962643100,-150.0,0.000379,20]
[312548802,1705962643110,-26809.11559721,0.000379,2]
[312548803,1705962643144,-3719.27761736,0.000379,2]
[312548806,1705962645898,-161.86,0.00027397,2]
[312548807,1705962645909,-161.86,0.0002968,2]
[312548809,1705962645919,-161.86,0.00031963,2]
[312548811,1705962645929,-161.86,0.00034247,2]
[312548813,1705962645938,-1041.89318127,0.00037899,2]
[312548815,1705962645948,-9596.41272398,0.000379,2]
[312548818,1705962645960,-13252.97645321,0.000379,2]
[312548820,1705962645972,-457.16083985,0.000379,2]
[312548822,1705962645984,-379.80612017,0.000379,2]
[312548825,1705962645996,-349.52660475,0.000379,2]
[312548827,1705962646007,-23825.95453527,0.000379,2]
[312548829,1705962646019,-583.64026731,0.000379,2]
[312548833,1705962646043,-312.86411109,0.000379,2]
[312548835,1705962646053,-151.0123,0.00037998,8]
[312548837,1705962646062,-209.18815397,0.00038093,10]
[312548839,1705962646073,-273.01,0.00038116,2]
[312548841,1705962646082,-150.0,0.00038356,2]
[312548843,1705962646092,-3491.62543494,0.00038356,2]
[312548847,1705962646120,-592.826,0.00038356,2]
[312548849,1705962646131,-547.28982238,0.00038356,2]
[312548853,1705962646154,-384.44874268,0.00038356,2]
[312548854,1705962646163,-164.97,0.00038375,2]
[312548855,1705962646173,-157.3035794,0.00038381,2]
[312548856,1705962646182,-422.57867262,0.00038412,2]
[312548857,1705962646194,-575.53197555,0.00038412,2]
[312548858,1705962646203,-151.0123,0.00038498,10]
[312548859,1705962646213,-242.57994177,0.0003852,2]
[312548860,1705962646223,-695.74276497,0.0003852,4]
[312548861,1705962646233,-503.61346443,0.000389,2]
[312548862,1705962646242,-381.18278025,0.00038915,9]
[312548863,1705962646252,-998.11064817,0.00039056,2]
[312548864,1705962646261,-258.4,0.00039122,2]
[312548865,1705962646271,-157.3035794,0.00039427,2]
[312548866,1705962646280,-151.0123,0.00039498,10]
[312548867,1705962646289,-998.11064817,0.00039701,2]
[312548868,1705962646299,-176.43,0.0004,2]
[312548869,1705962646308,-500.0,0.0004,2]
[312548870,1705962646317,-209.2078938,0.00040048,2]
[312548871,1705962646327,-2000.0,0.00040067,120]
[312548872,1705962646337,-36802.0561,0.00040067,120]
[312548873,1705962646346,-151.0123,0.00040098,8]
[312548874,1705962646356,-4934.35,0.00040156,2]
[312548875,1705962646365,-4934.35,0.00040156,2]
[312548876,1705962646375,-616.79,0.00040156,2]
[312548877,1705962646385,-616.79,0.00040156,2]
[312548878,1705962646395,-158573.46974,0.00040157,5]
[312548879,1705962646405,-151.0123,0.00040198,10]
[312548880,1705962646414,-150.0,0.00040274,2]
[312548881,1705962646423,-151.0123,0.00040298,8]
[312548882,1705962646432,-998.11064817,0.00040345,2]
[312548883,1705962646441,-159.99774198,0.00040373,8]
[312548884,1705962646451,-151.0123,0.00040398,12]
[312548885,1705962646461,-713.64402611,0.00040453,14]
[312548886,1705962646470,-1000.0,0.00040462,2]
[312548887,1705962646479,-5000.0,0.00040462,3]
[312548888,1705962646489,-1234.19717031,0.00040473,2]
[312548889,1705962646498,-157.3035794,0.00040473,2]
[312548890,1705962646507,-8398.05633907,0.00040473,2]
[312548891,1705962646517,-218.81122716,0.00040473,2]
[312548892,1705962646526,-402.0,0.0004049,2]
[312548893,1705962646535,-196.0123,0.00040498,10]
[312548894,1705962646545,-176.43,0.00040548,2]
[312548895,1705962646554,-500.0,0.00040548,2]
[312548896,1705962646563,-158573.46974,0.00040552,6]
[312548897,1705962646573,-616.79,0.00040553,2]
[312548898,1705962646583,-79286.7348702,0.00040554,6]
[312548899,1705962646593,-158573.46974,0.00040562,6]
[312548900,1705962646602,-503.61346443,0.00040567,5]
[312548901,1705962646611,-202.08717836,0.00040572,4]
[312548902,1705962646621,-69534.04076645,0.00040572,2]
[312548903,1705962646650,-5781.88633881,0.00040572,2]
[312548904,1705962646668,-1944.19119515,0.00040572,2]
[312548905,1705962646683,-8579.97989359,0.00040572,2]
[312548906,1705962646694,-308.3818292,0.00040572,2]
[312548907,1705962675400,282.89706329,0.0002,2]
[312548908,1705962677172,2324.81312884,0.0002,2]
[312548910,1705962736296,-3146.91697734,0.00027999,2]
[312548911,1705962736320,-2507.0,0.00028,2]
[312548912,1705962736343,-10195.0,0.00028,2]
[312548913,1705962736367,-225.76931188,0.00032454,4]
[312548914,1705962736395,-596.8919,0.00033789,2]
[312548915,1705962736420,-206.91598217,0.000338,2]
[312548916,1705962736445,-795.882,0.0003389,2]
[312548917,1705962736469,-573.1673,0.0003389,3]
[312548918,1705962736494,-800.9175233,0.000339,2]
[312548919,1705962736519,-1303.04694334,0.00036511,2]
[312548920,1705962736542,-206.91598215,0.00037136,2]
[312548921,1705962736573,-150.0,0.000373,2]
[312548922,1705962736597,-506.61948755,0.00038042,4]
[312548923,1705962736620,-1138.0,0.00038043,2]
[312548924,1705962736643,-277.45,0.00038043,2]
[312548925,1705962736666,-767.16175879,0.00038539,4]
[312548926,1705962736690,-152.17204998,0.00038543,2]
[312548927,1705962736713,-155.0,0.00039752,2]
[312548928,1705962736736,-222.49826248,0.00039753,4]
[312548929,1705962736759,-30268.39897729,0.00039879,4]
[312548930,1705962736783,-1583.61,0.0003988,2]
[312548931,1705962736806,-302.96537039,0.00039954,4]
[312548932,1705962738664,150.0,0.00038611,2]
[312548933,1705962740497,418.029,0.00033789,2]
[312548934,1705962742023,389.21,0.00039755,2]
[312548935,1705962743958,622.51303378,0.00038945,2]
[312548936,1705962749743,199.54948842,0.00036511,2]
[312549003,1705963834328,-1164.11847118,0.00021433,2]
[312549004,1705963834340,-1508.325507,0.00021433,2]
[312549005,1705963834389,-1477.66193459,0.00021433,2]
[312549006,1705963834401,-479.83967531,0.00021433,2]
[312549007,1705963834410,-384.92571764,0.00021434,2]
[312549008,1705963834419,-93.43460692,0.00021434,2]
[312549009,1705963834431,-365.30441413,0.00021434,2]
[312549010,1705963834442,-501.74404035,0.00021434,2]
[312549011,1705963834452,-316.617,0.00021434,2]
[312549012,1705963834467,-1025.78248683,0.00021434,2]
[312549013,1705963834483,-2952.48971687,0.00021434,2]
[312549014,1705963834495,-1984.32612,0.00021434,2]
[312549015,1705963834506,-4353.7,0.00021434,2]
[312549016,1705963834518,-2983.88558587,0.00021434,2]
[312549017,1705963834532,-2197.2664254,0.00021434,2]
[312549018,1705963834554,-1659.16795159,0.00021434,2]
[312549019,1705963834566,-482.7320001,0.00021434,2]
[312549020,1705963834579,-2229.09071573,0.00021434,2]
[312549021,1705963834592,-3627.95423727,0.00021434,2]
[312549022,1705963834604,-1044.775,0.00021434,2]
[312549026,1705963834656,-7579.42817028,0.00021434,2]
[312549028,1705963834666,-22626.6122352,0.00021435,2]
[312549030,1705963834675,-385.15601002,0.00021437,2]
[312549032,1705963834686,-1359.86894183,0.00021437,2]
[312549034,1705963834695,-285.51851062,0.00021437,2]
[312549036,1705963834705,-150.0,0.00021438,2]
[312549038,1705963834714,-3005.22093109,0.00021439,2]
[312549039,1705963834723,-2000.0,0.00021444,2]
[312549041,1705963834733,-210.0,0.00023582,2]
[312549042,1705963834742,-150.99,0.00024658,2]
[312549043,1705963834752,-250.0,0.00024658,2]
[312549044,1705963834761,-350.0,0.00025,3]
[312549045,1705963834771,-218.28,0.00026681,2]
[312549046,1705963834785,-400.0,0.00027,3]
[312549047,1705963834795,-159.54,0.00027397,2]
[312549048,1705963834804,-12061.0,0.00028,2]
[312549049,1705963834814,-320.97,0.00028,2]
[312549050,1705963834823,-170.13,0.00028749,2]
[312549051,1705963834832,-688.92857397,0.00028758,2]
[312549052,1705963834841,-218.28,0.00028944,2]
[312549053,1705963834851,-450.0,0.00029,3]
[312549054,1705963834860,-152.29,0.00029038,2]
[312549055,1705963834869,-159.54,0.0002911,2]
[312549056,1705963834878,-4352.40637627,0.00029648,2]
[312549057,1705963834888,-5000.0,0.0002965,2]
[312549058,1705963834898,-238.2392377,0.000299,4]
[312549059,1705963834907,-849.82924531,0.000299,2]
[312549060,1705963834916,-515585.77177693,0.0003,2]
[312549061,1705963834925,-2359.05768121,0.0003,2]
[312549062,1705963834934,-155.0,0.0003,2]
[312549063,1705963834943,-152.29,0.00030112,2]
[312549064,1705963834952,-311.36,0.00030371,2]
[312549065,1705963834962,-170.13,0.00030803,2]
[312549066,1705963834971,-159.54,0.00030822,2]
[312549067,1705963834980,-500.0,0.00031,3]
[312549068,1705963834990,-152.29,0.00031187,2]
[312549069,1705963834999,-218.28,0.00031208,2]
[312549070,1705963835008,-145292.560918,0.000318,2]
[312549071,1705963835018,-177.82670973,0.00031859,2]
[312549072,1705963835031,-250.0,0.0003196,2]
[312549073,1705963835041,-200.0,0.00032064,2]
[312549074,1705963835050,-2500.0,0.0003208,3]
[312549075,1705963835060,-200.0,0.00032123,2]
[312549076,1705963835069,-4151.21602624,0.00032172,2]
[312549077,1705963835079,-3128.27475178,0.00032182,4]
[312549078,1705963835089,-250.0,0.00032204,2]
[312549079,1705963835099,-152.29,0.00032261,2]
[312549080,1705963835108,-159.54,0.00032534,2]
[312549081,1705963835118,-162.2,0.00032542,2]
[312549082,1705963835127,-170.13,0.00032858,2]
[312549083,1705963835140,-158.57,0.00032877,15]
[312549084,1705963835149,-150.0,0.00032879,2]
[312549085,1705963835160,-238.23923765,0.00032886,6]
[312549086,1705963835170,-500.0,0.00032888,2]
[312549087,1705963835179,-169.00136356,0.00032967,2]
[312549088,1705963835188,-550.0,0.00033,3]
[312549089,1705963835198,-499.99,0.00033,2]
[312549090,1705963835208,-1141.864975,0.00033,3]
[312549091,1705963835217,-152.29,0.00033335,2]
[312549092,1705963835227,-735.20245442,0.00033436,2]
[312549093,1705963835236,-218.28,0.00033472,2]
[312549094,1705963835246,-151.0123,0.00033498,2]
[312549095,1705963835255,-175.58250697,0.00033537,4]
[312549096,1705963835264,-2418.34856453,0.00033537,2]
[312549097,1705963835274,-167.58,0.00033692,2]
[312549098,1705963835284,-4151.21602624,0.00033768,5]
[312549099,1705963835294,-4151.21602624,0.00033778,5]
[312549100,1705963835303,-817.43473583,0.00033778,4]
[312549101,1705963835313,-3624.15,0.00033778,2]
[312549102,1705963835323,-1000.0,0.00033778,2]
[312549103,1705963835333,-157.52234277,0.0003378,2]
[312549104,1705963835342,-1931.22653864,0.00033784,2]
[312549105,1705963835352,-181.78538729,0.00033784,6]
[312549106,1705963835362,-20756.0801312,0.00033866,5]
[312549107,1705963835371,-33209.7282099,0.00033869,5]
[312549108,1705963835380,-155.0,0.00033876,4]
[312549109,1705963835390,-384.45393113,0.00033876,4]
[312549110,1705963835400,-162.30418567,0.00033876,4]
[312549111,1705963835409,-516.83340516,0.00033876,4]
[312549112,1705963835419,-1041.92703667,0.00033876,4]
[312549113,1705963835429,-416.19937194,0.00033876,4]
[312549114,1705963835439,-289.13231179,0.00033876,4]
[312549115,1705963835449,-764.11347582,0.00033876,4]
[312549116,1705963835458,-387.20230097,0.00033876,4]
[312549117,1705963835468,-8065.6762048,0.00033876,7]
[312549118,1705963835481,-1645.13202341,0.00033876,7]
[312549119,1705963835493,-1017.93,0.00033876,7]
[312549120,1705963835504,-1811.20210573,0.00033876,7]
[312549126,1705963837961,-6170.57082958,0.00033876,7]
[312549135,1705963838031,-9484.21656729,0.00033876,7]
[312549137,1705963838040,-7105.1667781,0.00033876,5]
[312549139,1705963838049,-867.65374985,0.00033876,2]
[312549141,1705963838058,-501.74130467,0.00033876,4]
[312549143,1705963838067,-155.0,0.00033876,4]
[312549145,1705963838076,-1137.26948524,0.00033876,4]
[312549147,1705963838085,-731.25712485,0.00033876,4]
[312549149,1705963838095,-582.6484227,0.00033876,2]
[312549151,1705963838104,-308.4,0.00033878,2]
[312549152,1705963838114,-308.4,0.00033878,2]
[312549153,1705963838123,-308.4,0.00033878,2]
[312549154,1705963838139,-308.4,0.00033878,2]
[312549155,1705963838149,-308.4,0.00033878,2]
[312549156,1705963838159,-308.4,0.00033878,2]
[312549157,1705963838171,-308.4,0.00033878,2]
[312549158,1705963838180,-308.4,0.00033878,2]
[312549159,1705963838190,-308.4,0.00033878,2]
[312549160,1705963838200,-308.4,0.00033878,2]
[312549161,1705963838210,-337.66028075,0.00033878,2]
[312549162,1705963838219,-2492.60359623,0.00033879,7]
[312549163,1705963838231,-62630.66680341,0.00033879,7]
[312549164,1705963838240,-42075.69657074,0.00033879,2]
[312549165,1705963838252,-3970.87170013,0.00033879,2]
[312549166,1705963838263,-427.17696552,0.00033879,2]
[312549167,1705963838320,-14085.26231326,0.00033879,2]
[312549168,1705963838333,-916.156,0.00033879,2]
[312549169,1705963838344,-1317.0138514,0.00033879,2]
[312549172,1705963838356,-713.620453,0.00033879,2]
[312549174,1705963838371,-335.79546006,0.00033879,2]
[312549176,1705963838383,-594.759165,0.00033879,2]
[312549179,1705963838402,-827.13959953,0.00033879,2]
[312549192,1705963838511,-3588.23529824,0.00033879,2]
[312549194,1705963838523,-623.31486525,0.00033879,2]
[312549197,1705963838535,-417.80002,0.00033879,2]
[312549199,1705963838546,-668.6549,0.00033879,2]
[312549202,1705963838568,-403.30953986,0.00033879,2]
[312549205,1705963838580,-434.5840002,0.00033879,2]
[312549207,1705963838592,-14331.74791653,0.00033879,2]
[312549209,1705963838602,-15979.29771208,0.00033879,2]
[312549343,1705963841132,-1869.77706778,0.00033879,2]
[312549344,1705963841212,-275.33138551,0.00033879,2]
[312549345,1705963841226,-3659.50419337,0.00033879,2]
[312549346,1705963841238,-672.69533917,0.00033879,2]
[312549347,1705963841251,-1242.66925702,0.00033879,2]
[312549348,1705963841265,-280.414709,0.00033879,2]
[312549349,1705963841278,-277.87551864,0.00033879,2]
[312549350,1705963841309,-658.38525432,0.00033879,2]
[312549351,1705963841333,-251.4419933,0.00033879,2]
[312549352,1705963841345,-32192.28549685,0.00033879,2]
[312549353,1705963841356,-3488.73007933,0.00033879,2]
[312549359,1705963841467,-4371.5906833,0.00033879,2]
[312549360,1705963841480,-996.24098029,0.00033879,2]
[312549361,1705963841493,-807.2970511,0.00033879,2]
[312549362,1705963841504,-80619.08711971,0.00033879,2]
[312549385,1705963844090,-400.0,0.00033879,2]
[312549387,1705963844102,-474.17972,0.00033879,2]
[312549392,1705963844153,-869.58054229,0.00033879,2]
[312549393,1705963844165,-11497.30318946,0.00033879,2]
[312549394,1705963844176,-5977.431,0.00033879,2]
[312549395,1705963844188,-2690.31751121,0.00033879,2]
[312549396,1705963844199,-8543.59378781,0.00033879,2]
[312549397,1705963844211,-743.36048003,0.00033879,2]
[312549398,1705963844223,-11128.55037001,0.00033879,2]
[312549399,1705963844236,-19402.92821358,0.00033879,2]
[312549400,1705963844247,-410.5399995,0.00033879,2]
[312549401,1705963844277,-4884.48,0.00033879,2]
[312549402,1705963844294,-428.982312,0.00033879,2]
[312549403,1705963844309,-427.10354647,0.00033879,2]
[312549410,1705963847341,-687.32766733,0.00033878,4]
[312549411,1705963847351,-190.97652873,0.00033878,4]
[312549412,1705963847361,-525.07174403,0.00033878,4]
[312549413,1705963847370,-10637.71281237,0.00033879,2]
[312549414,1705963847382,-579.375,0.00033879,2]
[312549415,1705963847404,-1361.58516399,0.00033879,2]
[312549416,1705963847469,-1581.2678062,0.00033879,2]
[312549417,1705963847587,-3795.05126393,0.00033879,2]
[312549418,1705963847599,-7567.08157827,0.00033879,2]
[312549419,1705963847660,-11024.20335073,0.00033879,2]
[312549420,1705963847672,-1226.36147996,0.00033879,2]
[312549421,1705963847723,-302.37969356,0.00033878,2]
[312549422,1705963847733,-13127.56483797,0.00033879,2]
[312549423,1705963967200,5048.33428235,0.00019728,2]
[312549424,1705964033223,400.0,0.0002,2]
[312549425,1705964045234,11735.19302081,0.0002,2]
[312549426,1705964064433,20652.04604745,0.00025,30]
[312549427,1705964128316,500.0,0.00020532,2]
[312549428,1705964233220,223.02,0.00019114,2]
[312549429,1705964238613,314.52691818,0.00019113,2]
[312549430,1705964240618,155.0,0.00019113,2]
[312549431,1705964262570,2000.0,0.00020982,2]
[312549432,1705964416394,156.14,0.00020749,2]
[312549433,1705964431234,250.0,0.00020561,2]
[312549434,1705964437410,150.0,0.00020039,2]
[312549435,1705964437520,500.0,0.00020627,2]
[312549436,1705964438965,151.00857465,0.00020587,2]
[312549437,1705964440532,150.0,0.00020566,2]
[312549438,1705964461650,219.43,0.00020608,2]
[312549439,1705964539873,5443.39406608,0.00020939,2]
[312549440,1705964539902,2959.96593392,0.00020939,2]
[312549442,1705964589487,2872.88630646,0.00021,2]
[312549443,1705964624435,371.50432901,0.00021,2]
[312549444,1705964626224,400.0,0.00021,2]
[312549445,1705964626409,228.47561221,0.00021,2]
[312549446,1705964626911,521.21907199,0.00021,2]
[312549447,1705964627728,1853.89068505,0.00021,2]
[312549448,1705964628016,917.64707669,0.00021,2]
[312549449,1705964629978,3192.87206217,0.00021,2]
[312549450,1705964630049,2904.1472986,0.00021,2]
[312549451,1705964631092,160.78982946,0.00021,2]
[312549452,1705964632656,155.0,0.00021,2]
[312549453,1705964633152,286.88420414,0.00021,2]
[312549454,1705964633935,155.0,0.00021,2]
[312549455,1705964634887,155.0,0.00021,2]
[312549456,1705964635754,211.86194871,0.00021,2]
[312549457,1705964636659,3146.91697734,0.00021,2]
[312549458,1705964639596,265.7015071,0.00021,2]
[312549459,1705964640807,155.0,0.00021,2]
[312549460,1705964642638,2308.67867442,0.00021,2]
[312549461,1705964643344,1137.46246107,0.00021,2]
[312549462,1705964644621,155.0,0.00021,2]
[312549463,1705964645154,384.92571764,0.00021,2]
[312549464,1705964647316,155.0,0.00021,2]
[312549465,1705964649442,400.87297161,0.00021,2]
[312549466,1705964650819,364.35538868,0.00021,2]
[312549467,1705964651017,337.90026802,0.00021,2]
[312549468,1705964651053,543.34550297,0.00021,2]
[312549469,1705964653033,279.55344509,0.00021,2]
[312549470,1705964653195,2141.01788593,0.00021,2]
[312549471,1705964654044,529.74752157,0.00021,2]
[312549472,1705964654202,4491.27761482,0.00021,2]
[312549473,1705964654696,43035.37746379,0.00021,2]
[312549474,1705964658223,525.60097669,0.00021,2]
[312549475,1705964658778,1071.57950665,0.00021,2]
[312549476,1705964659442,2949.31540149,0.00021,2]
[312549477,1705964659967,301.52383717,0.00021,2]
[312549478,1705964661158,155.0,0.00021,2]
[312549479,1705964661260,167.58,0.00020683,2]
[312549480,1705964661538,155.0,0.00021,2]
[312549481,1705964661958,501.8201286,0.00021,2]
[312549482,1705964663521,281.43377314,0.00021,2]
[312549483,1705964664548,155.0,0.00021,2]
[312549484,1705964664605,488.46109368,0.00021,2]
[312549485,1705964664638,1813.37519997,0.00021,2]
[312549486,1705964664766,1769.33521671,0.00021,2]
[312549487,1705964665804,155.0,0.00021,2]
[312549488,1705964667378,3862.48921522,0.00021,2]
[312549489,1705964669356,155.0,0.00021,2]
[312549490,1705964670393,155.0,0.00021,2]
[312549491,1705964671125,1418.26758153,0.00020999,2]
[312549492,1705964671376,3046.47150089,0.00021,2]
[312549493,1705964671533,698.42275676,0.00021,2]
[312549494,1705964673575,4275.93203836,0.00020999,2]
[312549495,1705964675463,172.02741418,0.00021,2]
[312549496,1705964695414,160.78982946,0.00021,2]
[312549497,1705964704318,211.86194871,0.00021,2]
[312549498,1705964706523,917.64707669,0.00021,2]
[312549499,1705964708270,349.62,0.00020665,2]
[312549500,1705964715438,150.0,0.00020688,2]
[312549501,1705964721863,155.0,0.00021,2]
[312549502,1705964733876,2000.0,0.00020686,2]
[312549503,1705964735505,155.0,0.00021,2]
[312549504,1705964735873,155.0,0.00021,2]
[312549505,1705964736744,196.89871886,0.00021,2]
[312549506,1705964740493,233.38000799,0.00021,2]
[312549507,1705964741018,1710.59950938,0.00021,2]
[312549508,1705964741829,500.0,0.00020005,2]
[312549509,1705964744458,5447.86460582,0.00021,2]
[312549510,1705964753619,1418.26758153,0.00021,2]
[312549511,1705964783032,917.64707669,0.00021,2]
[312549512,1705964783585,71482.8921,0.00020913,2]
[312549513,1705964790970,23900.0,0.00020774,2]
[312549514,1705964797593,241.48,0.00018856,2]
[312549515,1705964801477,251.3528,0.00020913,2]
[312549516,1705964804080,155.0,0.00021,2]
[312549517,1705964812932,155.0,0.00021,2]
[312549518,1705964813598,242.67080697,0.00021,2]
[312549519,1705964819258,196.89871886,0.00021,2]
[312549520,1705964820521,33397.69847134,0.00021,2]
[312549521,1705964826405,3046.47150089,0.00021,2]
[312549522,1705964877218,158.92166931,0.00021,2]
[312549523,1705964886457,155.0,0.00021,2]
[312549524,1705964897670,242.67080697,0.00021,2]
[312549525,1705964928361,286.95,0.0002093,2]
[312549526,1705964929195,444.21,0.00020764,2]
[312549527,1705964941698,150.0,0.00021,2]
[312549528,1705964945986,250.0,0.00020766,2]
[312549529,1705964949527,158.92166931,0.00021,2]
[312549530,1705964951645,235.18,0.00020794,2]
[312549536,1705964997112,559.57,0.00020944,2]
[312549583,1705965033052,-2505.07671998,0.00021001,2]
[312549584,1705965033064,-421.87460659,0.00021001,2]
[312549585,1705965033137,-5523.84069082,0.00021001,2]
[312549586,1705965033149,-25195.19310937,0.00021001,2]
[312549587,1705965033220,-3281.06476261,0.00021001,2]
[312549588,1705965033231,-550.0,0.00021001,2]
[312549589,1705965033292,-1654.80033909,0.00021001,2]
[312549590,1705965033315,-750.06114253,0.00021001,2]